Cogmind - Beta 15 @@@ ROGUE MODE // 2025.08.18 @ 16:40:57 Player: Mogwok Wargfriend Result: Destroyed by M2-GNG(R) with Subdweller Beam Cannon Performance ------------- Evolutions (0) 0 Regions Visited (2) 400 Robots Destroyed (36) 180 Value Destroyed (767) 767 Prototype IDs (11) 220 Alien Tech Used (0) 0 Bonus (0) 0 TOTAL SCORE: 1567 Bonus ------- None Cogmind --------- Core Integrity 0/250 Matter 300/300 Energy 200/200 System Corruption 2% Temperature Cool (9) Movement Walking (130) Location -10/Subcaves Parts ------- > --- POWER (1) -------- Subdweller Power Source > --- PROPULSION (2) --- Cargo Legs > --- UTILITY (2+2) ---- Improved Heat Sink Large Storage Unit Subdweller Optics (+) > --- WEAPON (2) ------- Assault Rifle Battle Cannon > --- INVENTORY (15) --- Light Nuclear Core Improved Treads Improved Treads Improved Treads Subdweller Monowheel Large Storage Unit Medium Matter Pod (100) Subdweller Laser Subdweller Laser Subdweller Beam Cannon Subdweller Machine Gun Subdweller Machine Gun Subdweller Machine Gun Subdweller Shrapnel Launcher Mining Laser Peak State ------------ > --- POWER ------------ Subdweller Power Source > --- PROPULSION ------- Cargo Legs > --- UTILITY ---------- Improved Heat Sink Large Storage Unit Subdweller Optics > --- WEAPON ----------- Assault Rifle Battle Cannon > --- INVENTORY -------- Light Nuclear Core Improved Treads Improved Treads Improved Treads Subdweller Monowheel Large Storage Unit Medium Matter Pod Subdweller Laser Subdweller Laser Subdweller Beam Cannon Subdweller Machine Gun Subdweller Machine Gun Subdweller Machine Gun Subdweller Shrapnel Launcher Mining Laser [Rating: 29] Favorites ----------- Power Ion Engine Engine Ion Engine Propulsion Improved Treads Treads Improved Treads Leg Cargo Legs Wheel Compact Wheel Utility Large Storage Unit Device Improved Heat Sink Storage Large Storage Unit Protection Light Armor Plating Weapon Assault Rifle Energy Gun Small Laser Ballistic Gun Assault Rifle Ballistic Cannon Light Cannon Special Weapon Mining Laser Build | -11 -10 -10 ------- Run | Yrd Mat Sub Slots Evolved . | . . . Power . | . . . Propulsion . | . . . Utility . | . . . Weapon . | . . . Parts Attached 30 | 8 10 12 Power 4 | 1 1 2 Engine 4 | 1 1 2 Core . | . . . Reactor . | . . . Propulsion 9 | 3 3 3 Treads 6 | 1 3 2 Leg 1 | . . 1 Wheel 2 | 2 . . Hover . | . . . Flight . | . . . Utility 7 | 2 3 2 Device 3 | 1 . 2 Storage 3 | 1 2 . Processor . | . . . Hackware . | . . . Protection 1 | . 1 . Artifact . | . . . Weapon 10 | 2 3 5 Energy Gun 2 | 1 1 . Energy Cannon . | . . . Ballistic Gun 5 | 1 1 3 Ballistic Cannon 2 | . . 2 Launcher . | . . . Special Weapon 1 | . 1 . Impact Weapon . | . . . Slashing Weapon . | . . . Piercing Weapon . | . . . Special Melee Weapon . | . . . Unidentified Prototypes . | . . . Parts Lost 8 | . 1 7 Power 2 | . . 2 Propulsion 2 | . . 2 Utility 1 | . . 1 Weapon 3 | . 1 2 Highest Loss Streak 2 | . 1 2 To Critical Strikes . | . . . Average Backups 12 | 4 10 14 Power 1 | . 1 1 Propulsion 3 | 1 3 3 Utility 3 | . 2 3 Weapon 4 | 1 2 5 Tool/Special . | . . . Unused Backups 23 | . 5 18 Power 2 | . 1 1 Propulsion 5 | . 2 3 Utility 7 | . 1 6 Weapon 9 | . 1 8 Tool/Special . | . . . Average Slot Usage (%) 95 | . 100 92 Engine 13 | . 14 12 Treads 19 | . 19 19 Leg 1 | . . 3 Wheel 3 | . 8 . Device 9 | . 8 10 Storage 13 | . 14 13 Protection 5 | . 5 5 Energy Gun 5 | . 12 1 Ballistic Gun 16 | . 14 18 Ballistic Cannon 3 | . . 6 Peak Build Rating 29 | 7 10 29 Average Rating 12 | 6 8 15 On Entrance 5 | . 7 10 Naked Turns . | . . . Heaviest Build 33 | 11 31 33 Greatest Support 55 | 26 43 55 Greatest Overweight (x) 1 | . 1 . Average Overweight (x) . | . . . Largest Inventory Capacity 15 | 8 15 15 Average Capacity 12 | 7 10 15 Most Carried 15 | 7 15 15 Average Carried 12 | 4 10 14 Final Capacity 15 | 8 15 15 Final Carried 15 | 7 15 15 Class Distribution -------------------- 100% | Mutant Dominant Class ---------------- Mutant | -10/Materials Mutant | -10/Subcaves Resources | -11 -10 -10 ----------- Run | Yrd Mat Sub Matter Collected 1284 | 322 336 626 Remotely . | . . . Salvage Created 1148 | 188 452 508 Parts 70 | 11 29 30 Haulers Intercepted 1 | . 1 . Recyclers Shooed 2 | . 2 . Parts Field Recycled . | . . . Retrieved Matter . | . . . Parts Self-Destructed 15 | . . 15 Prevented . | . . . Kills | -11 -10 -10 ------- Run | Yrd Mat Sub Combat Hostiles Destroyed 22 | . 7 15 Guns 19 | . 7 12 Cannons 3 | . . 3 Classes Destroyed 11 | 3 5 3 Worker 2 | 2 . . Builder 1 | . 1 . Tunneler 3 | 3 . . Hauler 1 | . 1 . Recycler 2 | 1 1 . Turret 2 | . . 2 Watcher 3 | . 3 . Swarmer 9 | . 3 6 Grunt 4 | . 4 . Sentry 1 | . . 1 Subdweller 8 | . . 8 Best Kill Streak 4 | 3 4 4 Combat Bots Only 3 | . 3 2 Max Kills in Single Turn 1 | 1 1 1 Gunslinging . | . . . Exploded . | . . . Melee . | . . . Uniques/NPCs Destroyed . | . . . Combat | -11 -10 -10 -------- Run | Yrd Mat Sub Hostile Shots Fired 173 | . 42 131 Missed 56 | . 12 44 Hits 117 | . 30 87 Projectile 117 | . 30 87 Critical Strikes 3 | . . 3 Damage Taken 1540 | . 355 1185 Core 265 | . 35 230 Absorbed by Shields . | . . . Core Remaining (%) 100 | 100 . . Volleys Fired 155 | 22 48 85 Largest 2 | 2 2 2 Hottest 100 | 60 100 60 Shots Fired 285 | 44 84 157 Gun 232 | 44 72 116 Cannon 41 | . . 41 Launcher . | . . . Special 12 | . 12 . Kinetic 201 | 22 37 142 Thermal 84 | 22 47 15 Explosive . | . . . Electromagnetic . | . . . Robot Hit Streak 14 | 5 14 14 Robot Miss Streak 3 | 2 3 2 Penetration Max . | . . . Secondary Targets 3 | . 2 1 Max Gunslinging Chain 1 | . 1 1 Shots Hit Robots 155 | 29 46 80 Core Hits 64 | 11 21 32 Critical Kills . | . . . Critical Parts Destroyed . | . . . Critical Strikes . | . . . Melee Attacks . | . . . Impact . | . . . Slashing . | . . . Piercing . | . . . Sneak Attacks . | . . . Combat Hostiles . | . . . Follow-up Attacks . | . . . Damage Inflicted 1841 | 268 551 1022 Guns 1662 | 268 551 843 Cannons 179 | . . 179 Explosions . | . . . Melee . | . . . Ramming . | . . . Kinetic 1291 | 104 271 916 Thermal 550 | 164 280 106 Explosive . | . . . Electromagnetic . | . . . Impact . | . . . Slashing . | . . . Piercing . | . . . Highest Corruption 2 | . 2 2 Average Corruption 2 | . 2 2 Corruption Purged . | . . . Corruption Blocked . | . . . Effects 30 | . 4 26 Message Errors 7 | . 1 6 Matter Fused 10 | . . 10 Heat Flow Errors 4 | . 2 2 Energy Discharges 2 | . . 2 Data Loss (major) 3 | . . 3 Misfires 1 | . 1 . Alerts 2 | . . 2 Weapon Failures 1 | . . 1 Overload Shots . | . . . Overflow Damage . | . . . Projectiles . | . . . Explosions . | . . . Melee . | . . . Knockbacks 4 | . . 4 Impact . | . . . Kinetic 4 | . . 4 Secondary . | . . . Self-Inflicted Damage . | . . . Shots . | . . . Rammed . | . . . Targets Rammed . | . . . Kicked . | . . . Crushed . | . . . Highest Temperature 149 | 60 149 129 Average Temperature 33 | 29 33 65 Received Heat Transfer 519 | . 165 354 Siege Activations . | . . . Martial Activations . | . . . Shielding Activations . | . . . Robots Disrupted . | . . . Combat Hostiles . | . . . Robots Corrupted . | . . . Combat Hostiles . | . . . Parts Fried . | . . . Impact Corruptions . | . . . Robots Melted . | . . . Combat Hostiles . | . . . Parts Melted . | . . . Heat Transferred 1250 | 375 625 250 Parts Sabotaged . | . . . Parts Stolen . | . . . Parts Stripped . | . . . Power Chain Reactions . | . . . Alert | -11 -10 -10 ------- Run | Yrd Mat Sub Maximum Alert Level . | . . . Low Security (%) 100 | 100 100 . Level 1 . | . . . Level 2 . | . . . Level 3 . | . . . Level 4 . | . . . Level 5 . | . . . High Security . | . . . Max Security . | . . . Peak Influence 70 | 15 70 . Initial . | . . . Average 9 | 2 10 . Influence Increases 578 | 30 218 330 Destroy 0b10 Robot/C 320 | . 140 180 Destroy 0b10 Robot/NC 60 | 30 30 . Destroy Leader 38 | . 38 . Successful Hack 8 | . 8 . Destroy Structure 2 | . 2 . Lose Combat Pursuer 150 | . . 150 Influence Decreases 578 | 30 173 375 Entered New Map 22 | . . 22 Time Decay 492 | 30 163 299 Lost Part 64 | . 10 54 Squads Dispatched 1 | . 1 . Investigation . | . . . Extermination . | . . . Reinforcement 1 | . 1 . Assault . | . . . Garrison . | . . . Intercept . | . . . Searches Triggered . | . . . Construction Impeded . | . . . Haulers Reinforced . | . . . Active Scanning Responses . | . . . Cargo Convoy Interrupts . | . . . Stealth | -11 -10 -10 --------- Run | Yrd Mat Sub Distress Signals . | . . . Communications Jammed . | . . . Distress Signals . | . . . Times Spotted 32 | . 11 21 Peak Tracking Total 4 | . 4 4 Tactical Retreats 4 | . . 4 Traps | -11 -10 -10 ------- Run | Yrd Mat Sub Traps Triggered 2 | . 1 1 Indirectly . | . . . Trap Hack Attempts . | . . . Triggered . | . . . Disarmed . | . . . Reprogrammed . | . . . Reused . | . . . Traps Extracted . | . . . Installed 1 | . . 1 Triggered . | . . . Machines | -11 -10 -10 ---------- Run | Yrd Mat Sub Machines Disabled 2 | . . 2 Max in Single Turn 1 | . . 1 Machines Repaired . | . . . Machines Dismantled . | . . . Machines Sabotaged . | . . . Overloaded Fab Kills . | . . . Hacking | -11 -10 -10 --------- Run | Yrd Mat Sub Machines Accessed 6 | . 5 1 Terminals 3 | . 3 . Fabricators . | . . . Repair Stations . | . . . Recycling Units 2 | . 2 . Scanalyzers . | . . . Garrison Access . | . . . Total Hacks 20 | . 11 9 Successful 12 | . 3 9 Failed 8 | . 8 . Catastrophic 2 | . 2 . Database Lockouts . | . . . Manual 12 | . 12 . Terminals 5 | . 5 . Fabricators . | . . . Repair Stations . | . . . Recycling Units 6 | . 6 . Scanalyzers . | . . . Garrison Access . | . . . Terminal Hacks 9 | . . 9 Record 8 | . . 8 Proto ID Catalog 1 | . . 1 Fabricator Hacks . | . . . Repair Station Hacks . | . . . Recycling Unit Hacks . | . . . Scanalyzer . | . . . Garrison Access Hacks . | . . . Unauthorized Hacks 3 | . 3 . Terminals 1 | . 1 . Botnet 1 | . 1 . Fabricators . | . . . Repair Stations . | . . . Recycling Units 2 | . 2 . Reject 2 | . 2 . Scanalyzers . | . . . Garrison Access . | . . . Data Cores Recovered . | . . . Used . | . . . Hacking Detections 5 | . 5 . Full Trace Events . | . . . Feedback Events . | . . . Feedback Blocked . | . . . Robot Schematics Acquired . | . . . Robots Built . | . . . Authchips . | . . . Time . | . . . Total Robot Build Rating . | . . . Part Schematics Acquired . | . . . Parts Built . | . . . Authchips . | . . . Time . | . . . Total Part Build Rating . | . . . Parts Repaired . | . . . Time . | . . . Parts Recycled . | . . . Recycled Matter . | . . . Retrieved Matter . | . . . Retrieved Components . | . . . Parts Scanalyzed . | . . . Part Schematics Acquired . | . . . Parts Damaged . | . . . Bothacking | -11 -10 -10 ------------ Run | Yrd Mat Sub Used RIF Installer . | . . . Robots Hacked . | . . . Non-combat . | . . . Combat . | . . . Robot Hacks Applied . | . . . Relay Couplers Released . | . . . Fabnet Peak Effective % . | . . . Robots Rewired . | . . . Allies Hacked . | . . . Hacks Repelled . | . . . Allies | -11 -10 -10 -------- Run | Yrd Mat Sub Total Allies . | . . . Largest Group . | . . . Highest-Rated Group . | . . . Highest-Rated Ally . | . . . Total Orders . | . . . Ally Attacks . | . . . Total Damage . | . . . Kills . | . . . Allies Corrupted . | . . . Allies Melted . | . . . Intel | -11 -10 -10 ------- Run | Yrd Mat Sub Active Infowar (turns) 1239 | 102 677 460 Optics 460 | . . 460 Seismic 779 | 102 677 . Robot Analysis Total . | . . . Derelict Logs Recovered 1 | . . 1 Drone Launches . | . . . Drone Recoveries . | . . . Exploration | -11 -10 -10 ------------- Run | Yrd Mat Sub Turns Passed 2998 | 185 1121 1692 Spaces Moved 1732 | 111 690 931 Core 9 | 9 . . Treads 831 | . 251 580 Legs 351 | . . 351 Wheels 541 | 102 439 . Hover . | . . . Flight . | . . . Fastest Speed 50 | 50 100 130 Average Speed 136 | 95 126 148 Slowest Speed 160 | 100 160 160 Overloaded Moves . | . . . Propulsion Burnouts . | . . . Robots Hopped . | . . . Potential Cave-ins . | . . . Cave-ins Triggered . | . . . Exploration Rate (%) 42 | 5 71 51 Regions Visited 2 Branch Regions 1 Pre-discovered Areas . | . . . Known Exits Taken . | . . . Unknown Exits Taken 2 | 1 1 . Scrap Searched 4 | . . 4 Spaces Dug 4 | . 3 1 Terrain Destroyed 9 | . 7 2 Melee . | . . . Projectile 9 | . 7 2 AOE . | . . . Terrain Rammed . | . . . Walls Destroyed . | . . . Machines Disabled . | . . . Actions | -11 -10 -10 --------- Run | Yrd Mat Sub Total 2072 | 147 839 1086 Wait 92 | . 58 34 Move 1730 | 110 689 931 Hop . | . . . Pick Up 34 | 6 16 12 Fast Attach 13 | 8 2 3 Attach 8 | . 1 7 Detach 3 | 1 . 2 Swap 12 | . 10 2 Drop 24 | . 15 9 Fire 155 | 22 48 85 Melee . | . . . Ram . | . . . Kick . | . . . Crush . | . . . Escape Stasis . | . . . Rewire . | . . . Trap 1 | . . 1 Miscellaneous . | . . . Route ------- -11/Scrapyard -10/Materials (discovered 3 exits: [*Mat] / [*Min] / *Sub) -10/Subcaves (discovered 2 exits: *Rec / [*Scr]) History --------- Turn | Location | Event 21 | -11/Scrapyard | Discovered new exit (range 16) 186 | -11/Scrapyard | Entered Materials 259 | -10/Materials | Discovered new exit (range 12) 308 | -10/Materials | Build established: Mutant 583 | -10/Materials | Discovered new exit (range 16) 773 | -10/Materials | Discovered new exit (range 7) 1307 | -10/Materials | Entered Subcaves 1308 | -10/Subcaves | Approached by a straggling Scientist 1695 | -10/Subcaves | Scientist uncovered a shortcut to Scraptown 1832 | -10/Subcaves | Shifting Twisted Machinery released Sub. Beam Cannon 1847 | -10/Subcaves | Shifting Twisted Machinery released Sub. Laser 1990 | -10/Subcaves | Identified exit to Recycling 2111 | -10/Subcaves | Core integrity fell below 50% 2215 | -10/Subcaves | Ambushed by Subdweller buried in earth 2227 | -10/Subcaves | Core integrity fell below 20% 2482 | -10/Subcaves | Visited 4L-MR0's lab 2507 | -10/Subcaves | Found Cargo Legs 2508 | -10/Subcaves | Attached Cargo Legs, gained temporary slots: Utility x2 2659 | -10/Subcaves | A swath of the cavern ceiling suddenly collapsed 2888 | -10/Subcaves | Disturbed a concealed Subdweller 2999 | -10/Subcaves | Destroyed by M2-GNG(R) with Subdweller Beam Cannon Last Messages --------------- 02928_ Found Mak. Thermal Plating. 02928_ Found Sub. Machine Gun. 02928_ Found 70 Matter. 02929_ Acquired 15 matter. 02931_ Searching scrap... 02931_ Found Sub. Machine Gun. 02931_ Found 56 Matter. 02933_ Dropped Com. Wheel. 02935_ Acquired Sub. Machine Gun. 02937_ Searching scrap... 02937_ Found Battle Cannon. 02937_ Found Flamer. 02937_ Found 60 Matter. 02943_ Dropped Lgt. Cannon. 02944_ Acquired 10 matter. 02951_ Dropped Sub. Machine Gun. 02951_ Acquired Sub. Machine Gun. 02951_ 2J-L9X(O) collects matter. 02954_ 2J-L9X(O) puts together Flamer. 02956_ 2J-L9X(O) collects matter. Map ----- +----------------------------------------------------+ | | | | | | | | | | | | | ?????????????????????????????????????????????????? | | ?????????????????????????????????????????????????? | | ?????????????????????????????????????????????????? | | ?????????????????????????????????????????????????? | | ?????????????????????????????????????????????????? | | ?????????????????????????????????????????????????? | | ?????????????????????????????????????????????????? | | ?????????????????????????????????????????????????? | | ?????????#######?????????????????????????????????? | | ?????????#]|# !#?????????????????????????????????? | | ?????????#%== %#?????????????????????????????????? | | ?????????###&"##?????##?###??????????????????????? | | ??????????#|[###?????? #$ #??????????????????????? | | ?????????###[# #?????? $???????????????????????? | | ?????????# "!" ##??####&"??????????????????#?????# | | ?????????# #### #$ ###???????????????? #???# | | ????????## ## ## # ###?????????????? ### | | ???????## ### < R # #???????? ## | | ######## ## # # | | ## ## ## @ #????#### | | ### ### ###????# # | | #?# ##?# #??????# #? | | # ## ## ##?####??## #### ######??????# #? | | ###########?????????####???##???????????# % #? | | |#???????????????????????????????????????# ## | | #??????????????????????????????????????## # | | ##???????????????????????????????????### | | ###?????????????????????????????????# | | #?????????????????????????????????# ## | | ##????????????????????????????????# ### | | #??????????????????????????????#### %# ## # | | # ##??????????????????????????????# | | # ##???????????????????????????????# # | | #????????????????????????????????## #### | | # #?????????????????????????????????# ##### | | # #?????????????????????????????????# #### | | # ##???????????????????????????????# #?# % | | ###??##????????????????????????# ##?# ### | | #### ##?????????????????????# #???## ##? | | [ #????????????????????# ##????### #? | | ##???????????????????# ?##??## ##? | | """" ##??????????????????##?## ??# #? | | ## #""" #?????????????????????# ??# #? | | ??#####""" "?????######???????????# #?## ## | +----------------------------------------------------+ Best States ------------- Heat Dissipation 39 Energy Generation 15 Energy Capacity 250 Matter Stores 300 Matter Capacity 300 Sight Range 21 Terrain Scan Density 10 Armor Coverage 150 Evasion (%) 55 Recoil Reduction 2 Item Schematics ----------------- None Robot Schematics ------------------ None Fabricated ------------ Nothing Repaired ---------- Nothing Alien Tech Used ----------------- None Achievements -------------- None Challenges ------------ None Game ------ Seed SuperdenseReinforcedCasing Manual? 0 Play Time 00:21:15 Cumulative 319.0 hours Start 2025.08.18 @ 16:00:21 End 2025.08.18 @ 16:40:57 Sessions 1 Manual Loads 0 Difficulty Rogue Special Mode None Game No. 275 Rogue 275 Adventurer 0 Explorer 0 Win Type - Total 2 Types 2/0/0/0/0/0/0/0/0/0 Lore% 71 Gallery% 65 Achievement% 53 Wizard Run 0 Options --------- Layout 2 ASCII 1 Keyboard 1 Movement Numpad Keybinds 0 Fullscreen 2 Font 32/TamsynBold Map View 50x44 Zoom Use 0% Tactical HUD 1 Map Filters NONE Filters NONE Steam 1 RUN: f9674cf7-5e9f-4aaf-82c0-40b1c8b4d4f8